[Event "Titled Tuesday Blitz March 08 Early 2022"]
[White "Kohler, Aran"]
[Black "Derige Kane, Yan"]
[WhiteFideId "1002856"]
[BlackFideId "20665431"]
[WhiteElo "2293"]
[BlackElo "2169"]
[Result "0-1"]
[Round "10"]
[TimeControl "180+1"]
[Date "2022.03.09"]
[WhiteClock "0:00:07"]
[BlackClock "0:00:46"]

1. d4 {[%clk 0:02:59]}  c5 {[%clk 0:02:58]} 2. c3 {[%clk 0:02:54]}  cxd4 {[%clk 0:02:57]} 3. cxd4 {[%clk 0:02:54]}  d5 {[%clk 0:02:58]} 4. Nc3 {[%clk 0:02:54]}  Nc6 {[%clk 0:02:59]} 5. Bf4 {[%clk 0:02:54]}  Nf6 {[%clk 0:03:00]} 6. e3 {[%clk 0:02:54]}  a6 {[%clk 0:03:00]} 7. Nf3 {[%clk 0:02:54]}  Bg4 {[%clk 0:03:00]} 8. Bd3 {[%clk 0:02:54]}  e6 {[%clk 0:03:01]} 9. h3 {[%clk 0:02:54]}  Bh5 {[%clk 0:03:01]} 10. g4 {[%clk 0:02:53]}  Bg6 {[%clk 0:03:00]} 11. Ne5 {[%clk 0:02:53]}  Bd6 {[%clk 0:03:01]} 12. O-O {[%clk 0:02:41]}  Qc7 {[%clk 0:03:01]} 13. Nxg6 {[%clk 0:02:36]}  hxg6 {[%clk 0:03:00]} 14. Bxd6 {[%clk 0:02:36]}  Qxd6 {[%clk 0:03:01]} 15. Kg2 {[%clk 0:02:33]}  Ke7 {[%clk 0:03:01]} 16. f4 {[%clk 0:02:29]}  Rh4 {[%clk 0:03:00]} 17. Rf3 {[%clk 0:02:26]}  Rah8 {[%clk 0:02:59]} 18. Qb3 {[%clk 0:02:04]}  b5 {[%clk 0:02:57]} 19. a4 {[%clk 0:02:00]}  b4 {[%clk 0:02:57]} 20. Ne2 {[%clk 0:02:00]}  Na5 {[%clk 0:02:52]} 21. Qc2 {[%clk 0:01:54]}  b3 {[%clk 0:02:52]} 22. Qc3 {[%clk 0:01:51]}  Nc4 {[%clk 0:02:27]} 23. Bxc4 {[%clk 0:01:48]}  dxc4 {[%clk 0:02:28]} 24. Qxc4 {[%clk 0:01:49]}  Ne4 {[%clk 0:02:28]} 25. Rd1 {[%clk 0:01:42]}  Qd5 {[%clk 0:02:18]} 26. Qc7+ {[%clk 0:01:37]}  Qd7 {[%clk 0:02:09]} 27. Qxd7+ {[%clk 0:01:37]}  Kxd7 {[%clk 0:02:10]} 28. d5 {[%clk 0:01:38]}  Rc8 {[%clk 0:02:06]} 29. dxe6+ {[%clk 0:01:38]}  Kxe6 {[%clk 0:02:07]} 30. Nd4+ {[%clk 0:01:37]}  Ke7 {[%clk 0:02:06]} 31. Rff1 {[%clk 0:01:14]}  Rhh8 {[%clk 0:02:03]} 32. Rc1 {[%clk 0:01:09]}  Nd2 {[%clk 0:02:02]} 33. Rfd1 {[%clk 0:01:06]}  Nc4 {[%clk 0:02:01]} 34. Nxb3 {[%clk 0:01:05]}  Nxe3+ {[%clk 0:02:01]} 35. Kf3 {[%clk 0:01:04]}  Nxd1 {[%clk 0:02:02]} 36. Rxd1 {[%clk 0:01:04]}  Rhd8 {[%clk 0:02:00]} 37. Nd4 {[%clk 0:00:59]}  Rc4 {[%clk 0:01:49]} 38. Ke3 {[%clk 0:00:59]}  Rd6 {[%clk 0:01:42]} 39. b3 {[%clk 0:00:57]}  Rc3+ {[%clk 0:01:37]} 40. Rd3 {[%clk 0:00:57]}  Rc1 {[%clk 0:01:31]} 41. f5 {[%clk 0:00:55]}  Re1+ {[%clk 0:01:28]} 42. Kf3 {[%clk 0:00:52]}  g5 {[%clk 0:01:25]} 43. Re3+ {[%clk 0:00:40]}  Rxe3+ {[%clk 0:01:24]} 44. Kxe3 {[%clk 0:00:41]}  Kf6 {[%clk 0:01:25]} 45. b4 {[%clk 0:00:34]}  Ke5 {[%clk 0:01:22]} 46. Nf3+ {[%clk 0:00:34]}  Kd5 {[%clk 0:01:23]} 47. Nxg5 {[%clk 0:00:34]}  Rd7 {[%clk 0:01:22]} 48. Kd3 {[%clk 0:00:31]}  Ke5+ {[%clk 0:01:23]} 49. Ke3 {[%clk 0:00:30]}  Kd5 {[%clk 0:01:23]} 50. Kd3 {[%clk 0:00:29]}  Rb7 {[%clk 0:01:18]} 51. b5 {[%clk 0:00:27]}  axb5 {[%clk 0:01:17]} 52. axb5 {[%clk 0:00:27]}  Rxb5 {[%clk 0:01:10]} 53. Nxf7 {[%clk 0:00:27]}  Rb3+ {[%clk 0:01:11]} 54. Ke2 {[%clk 0:00:28]}  Rxh3 {[%clk 0:01:12]} 55. Ng5 {[%clk 0:00:24]}  Rg3 {[%clk 0:01:11]} 56. Kf2 {[%clk 0:00:18]}  Rxg4 {[%clk 0:01:11]} 57. Nf3 {[%clk 0:00:18]}  Rf4 {[%clk 0:01:10]} 58. Kg3 {[%clk 0:00:19]}  Rxf5 {[%clk 0:01:10]} 59. Kg4 {[%clk 0:00:20]}  Ke4 {[%clk 0:01:02]} 60. Ng5+ {[%clk 0:00:19]}  Ke5 {[%clk 0:00:59]} 61. Nf3+ {[%clk 0:00:19]}  Kf6 {[%clk 0:00:59]} 62. Nh4 {[%clk 0:00:18]}  Rg5+ {[%clk 0:00:57]} 63. Kf4 {[%clk 0:00:18]}  Ra5 {[%clk 0:00:56]} 64. Nf3 {[%clk 0:00:17]}  Ra4+ {[%clk 0:00:56]} 65. Kg3 {[%clk 0:00:17]}  Kf5 {[%clk 0:00:55]} 66. Kg2 {[%clk 0:00:15]}  Kf4 {[%clk 0:00:53]} 67. Nh4 {[%clk 0:00:14]}  g5 {[%clk 0:00:51]} 68. Ng6+ {[%clk 0:00:13]}  Kf5 {[%clk 0:00:52]} 69. Ne7+ {[%clk 0:00:13]}  Kg4 {[%clk 0:00:52]} 70. Kf2 {[%clk 0:00:13]}  Ra2+ {[%clk 0:00:52]} 71. Ke3 {[%clk 0:00:12]}  Ra1 {[%clk 0:00:51]} 72. Ng6 {[%clk 0:00:12]}  Kh3 {[%clk 0:00:49]} 73. Kf2 {[%clk 0:00:10]}  Ra3 {[%clk 0:00:46]} 74. Ne5 {[%clk 0:00:08]}  g4 {[%clk 0:00:45]} 75. Nf7 {[%clk 0:00:07]}  g3+ {[%clk 0:00:45]} 76. Kf1 {[%clk 0:00:07]}  g2+ {[%clk 0:00:45]} 77. Kf2 {[%clk 0:00:08]}  Ra2+ {[%clk 0:00:45]} 78. Kg1 {[%clk 0:00:07]}  Ra1+ {[%clk 0:00:45]} 79. Kf2 {[%clk 0:00:07]}  g1=Q+ {[%clk 0:00:46]} 80. Kf3 {[%clk 0:00:07]}  Rf1+ {[%clk 0:00:46]} 0-1


[Site "https://www.chess.com"]

[Event "Titled Tuesday Blitz March 08 Early 2022"]
[White "Komiagina, Maria"]
[Black "Ljukin, Sergei"]
[WhiteFideId "4153987"]
[BlackFideId "14102200"]
[WhiteElo "1945"]
[BlackElo "2312"]
[Result "0-1"]
[Round "10"]
[TimeControl "180+1"]
[Date "2022.03.09"]
[WhiteClock "0:00:01"]
[BlackClock "0:00:05"]

1. e4 {[%clk 0:03:00]}  e6 {[%clk 0:02:59]} 2. d4 {[%clk 0:02:59]}  d5 {[%clk 0:02:59]} 3. exd5 {[%clk 0:02:59]}  exd5 {[%clk 0:02:59]} 4. Nf3 {[%clk 0:02:59]}  Nf6 {[%clk 0:03:00]} 5. Bd3 {[%clk 0:02:57]}  c5 {[%clk 0:02:58]} 6. dxc5 {[%clk 0:02:54]}  Bxc5 {[%clk 0:02:58]} 7. h3 {[%clk 0:02:54]}  O-O {[%clk 0:02:58]} 8. O-O {[%clk 0:02:54]}  Nc6 {[%clk 0:02:58]} 9. Bg5 {[%clk 0:02:52]}  h6 {[%clk 0:02:58]} 10. Bh4 {[%clk 0:02:52]}  g5 {[%clk 0:02:58]} 11. Bg3 {[%clk 0:02:52]}  Ne4 {[%clk 0:02:58]} 12. Bh2 {[%clk 0:02:36]}  f5 {[%clk 0:02:49]} 13. Nc3 {[%clk 0:02:23]}  Be6 {[%clk 0:02:49]} 14. Ne5 {[%clk 0:02:13]}  Qf6 {[%clk 0:02:24]} 15. Nxc6 {[%clk 0:02:00]}  bxc6 {[%clk 0:02:24]} 16. Na4 {[%clk 0:01:55]}  Be7 {[%clk 0:02:21]} 17. c3 {[%clk 0:01:46]}  f4 {[%clk 0:02:14]} 18. f3 {[%clk 0:01:44]}  Nc5 {[%clk 0:02:06]} 19. Kh1 {[%clk 0:01:31]}  Nxd3 {[%clk 0:01:26]} 20. Qxd3 {[%clk 0:01:30]}  Bf5 {[%clk 0:01:26]} 21. Qd4 {[%clk 0:01:25]}  Qxd4 {[%clk 0:01:20]} 22. cxd4 {[%clk 0:01:25]}  Bd6 {[%clk 0:01:18]} 23. Bg1 {[%clk 0:01:20]}  Rfe8 {[%clk 0:01:14]} 24. Rfe1 {[%clk 0:01:20]}  Bb4 {[%clk 0:01:09]} 25. Rxe8+ {[%clk 0:01:10]}  Rxe8 {[%clk 0:01:09]} 26. Rc1 {[%clk 0:01:10]}  Re2 {[%clk 0:01:06]} 27. a3 {[%clk 0:00:57]}  Bd2 {[%clk 0:01:01]} 28. Ra1 {[%clk 0:00:37]}  Be3 {[%clk 0:00:31]} 29. b4 {[%clk 0:00:15]}  Rd2 {[%clk 0:00:27]} 30. Nc5 {[%clk 0:00:14]}  Rxd4 {[%clk 0:00:25]} 31. Re1 {[%clk 0:00:11]}  Bxg1 {[%clk 0:00:20]} 32. Kxg1 {[%clk 0:00:11]}  Rd2 {[%clk 0:00:19]} 33. Re7 {[%clk 0:00:10]}  d4 {[%clk 0:00:17]} 34. Rxa7 {[%clk 0:00:08]}  d3 {[%clk 0:00:17]} 35. Ra8+ {[%clk 0:00:07]}  Kf7 {[%clk 0:00:16]} 36. Rd8 {[%clk 0:00:07]}  Ke7 {[%clk 0:00:16]} 37. Rd4 {[%clk 0:00:06]}  Ra2 {[%clk 0:00:13]} 38. Kf1 {[%clk 0:00:02]}  Rxa3 {[%clk 0:00:13]} 39. Ke1 {[%clk 0:00:02]}  Ra2 {[%clk 0:00:12]} 40. Kd1 {[%clk 0:00:02]}  Rxg2 {[%clk 0:00:12]} 41. Nxd3 {[%clk 0:00:02]}  Bxh3 {[%clk 0:00:11]} 42. Ne5 {[%clk 0:00:02]}  Bf5 {[%clk 0:00:11]} 43. Nxc6+ {[%clk 0:00:02]}  Ke6 {[%clk 0:00:09]} 44. b5 {[%clk 0:00:02]}  Rb2 {[%clk 0:00:08]} 45. Na7 {[%clk 0:00:01]}  h5 {[%clk 0:00:07]} 46. Ra4 {[%clk 0:00:01]}  h4 {[%clk 0:00:07]} 47. Ra6+ {[%clk 0:00:01]}  Ke5 {[%clk 0:00:07]} 48. b6 {[%clk 0:00:01]}  h3 {[%clk 0:00:06]} 49. Nc6+ {[%clk 0:00:01]}  Kd5 {[%clk 0:00:06]} 50. Ne7+ {[%clk 0:00:01]}  Ke5 {[%clk 0:00:05]} 51. Ra5+ {[%clk 0:00:01]}  Ke6 {[%clk 0:00:05]} 0-1


[Site "https://www.chess.com"]

[Event "Titled Tuesday Blitz March 08 Early 2022"]
[White "Manukian, Artak"]
[Black "Nguyen, Thien Ngan"]
[WhiteFideId "13301373"]
[BlackFideId "12414816"]
[WhiteElo "2515"]
[BlackElo "1917"]
[Result "0-1"]
[Round "10"]
[TimeControl "180+1"]
[Date "2022.03.09"]
[WhiteClock "0:00:05"]
[BlackClock "0:00:48"]

1. e4 {[%clk 0:03:00]}  e5 {[%clk 0:02:59]} 2. Nf3 {[%clk 0:03:00]}  Nc6 {[%clk 0:03:00]} 3. d4 {[%clk 0:03:00]}  exd4 {[%clk 0:03:00]} 4. Nxd4 {[%clk 0:03:01]}  Bc5 {[%clk 0:02:59]} 5. Nxc6 {[%clk 0:03:01]}  bxc6 {[%clk 0:02:56]} 6. Bd3 {[%clk 0:03:00]}  d5 {[%clk 0:02:54]} 7. O-O {[%clk 0:02:57]}  Ne7 {[%clk 0:02:48]} 8. Qh5 {[%clk 0:02:55]}  O-O {[%clk 0:02:41]} 9. exd5 {[%clk 0:02:54]}  g6 {[%clk 0:02:40]} 10. Qh6 {[%clk 0:02:54]}  cxd5 {[%clk 0:02:38]} 11. Bg5 {[%clk 0:02:48]}  Qd6 {[%clk 0:02:37]} 12. Nc3 {[%clk 0:02:34]}  Nf5 {[%clk 0:02:35]} 13. Bxf5 {[%clk 0:02:32]}  Bxf5 {[%clk 0:02:35]} 14. Rad1 {[%clk 0:02:19]}  c6 {[%clk 0:02:35]} 15. Rd2 {[%clk 0:02:18]}  Rfe8 {[%clk 0:02:28]} 16. Qh4 {[%clk 0:02:00]}  Bb4 {[%clk 0:02:02]} 17. a3 {[%clk 0:01:51]}  Ba5 {[%clk 0:02:00]} 18. b4 {[%clk 0:01:49]}  Bc7 {[%clk 0:02:00]} 19. b5 {[%clk 0:01:40]}  Ba5 {[%clk 0:01:55]} 20. Qd4 {[%clk 0:01:14]}  c5 {[%clk 0:01:50]} 21. Qxd5 {[%clk 0:01:14]}  Qxd5 {[%clk 0:01:39]} 22. Nxd5 {[%clk 0:01:15]}  Bxd2 {[%clk 0:01:37]} 23. Bxd2 {[%clk 0:00:50]}  Red8 {[%clk 0:01:30]} 24. Nf6+ {[%clk 0:00:33]}  Kg7 {[%clk 0:01:20]} 25. Bc3 {[%clk 0:00:33]}  Kh6 {[%clk 0:01:13]} 26. g4 {[%clk 0:00:29]}  Bxc2 {[%clk 0:01:10]} 27. f4 {[%clk 0:00:28]}  Rd3 {[%clk 0:01:05]} 28. g5+ {[%clk 0:00:18]}  Kg7 {[%clk 0:01:04]} 29. Be5 {[%clk 0:00:16]}  c4 {[%clk 0:00:58]} 30. Nd7+ {[%clk 0:00:10]}  Kg8 {[%clk 0:00:55]} 31. Nf6+ {[%clk 0:00:10]}  Kf8 {[%clk 0:00:52]} 32. Nxh7+ {[%clk 0:00:10]}  Ke7 {[%clk 0:00:52]} 33. Re1 {[%clk 0:00:10]}  Rd1 {[%clk 0:00:51]} 34. Rxd1 {[%clk 0:00:07]}  Bxd1 {[%clk 0:00:51]} 35. Nf6 {[%clk 0:00:07]}  Bf3 {[%clk 0:00:50]} 36. Kf2 {[%clk 0:00:08]}  Bb7 {[%clk 0:00:50]} 37. Ke3 {[%clk 0:00:08]}  Rd8 {[%clk 0:00:49]} 38. Ne4 {[%clk 0:00:07]}  Rd3+ {[%clk 0:00:48]} 39. Ke2 {[%clk 0:00:05]}  Bxe4 {[%clk 0:00:48]} 0-1


[Site "https://www.chess.com"]

[Event "Titled Tuesday Blitz March 08 Early 2022"]
[White "Martinez Alcantara, Jose Eduardo"]
[Black "Sanal, Vahap"]
[WhiteFideId "3805662"]
[BlackFideId "6300545"]
[WhiteElo "2690"]
[BlackElo "2603"]
[Result "1-0"]
[Round "10"]
[TimeControl "180+1"]
[Date "2022.03.08"]
[WhiteClock "0:00:15"]
[BlackClock "0:00:05"]

1. e4 {[%clk 0:03:00]}  d6 {[%clk 0:02:58]} 2. d4 {[%clk 0:03:00]}  Nf6 {[%clk 0:02:57]} 3. Bd3 {[%clk 0:02:58]}  e5 {[%clk 0:02:57]} 4. c3 {[%clk 0:02:58]}  Nc6 {[%clk 0:02:49]} 5. Nf3 {[%clk 0:02:53]}  g6 {[%clk 0:02:50]} 6. h3 {[%clk 0:02:53]}  Bg7 {[%clk 0:02:50]} 7. O-O {[%clk 0:02:53]}  O-O {[%clk 0:02:50]} 8. Nbd2 {[%clk 0:02:47]}  Re8 {[%clk 0:02:49]} 9. Re1 {[%clk 0:02:44]}  a6 {[%clk 0:02:39]} 10. a3 {[%clk 0:02:31]}  a5 {[%clk 0:02:18]} 11. Bc2 {[%clk 0:01:54]}  exd4 {[%clk 0:02:02]} 12. cxd4 {[%clk 0:01:54]}  Nd7 {[%clk 0:01:37]} 13. Nf1 {[%clk 0:01:51]}  Nb6 {[%clk 0:01:35]} 14. Bg5 {[%clk 0:01:41]}  Bf6 {[%clk 0:01:32]} 15. Bf4 {[%clk 0:01:36]}  a4 {[%clk 0:01:29]} 16. Ne3 {[%clk 0:01:30]}  Bd7 {[%clk 0:01:23]} 17. Rc1 {[%clk 0:01:27]}  Bg7 {[%clk 0:01:23]} 18. Bg5 {[%clk 0:01:27]}  Qb8 {[%clk 0:01:11]} 19. Bb1 {[%clk 0:01:02]}  Ra5 {[%clk 0:01:09]} 20. Bf4 {[%clk 0:01:01]}  Qd8 {[%clk 0:01:07]} 21. d5 {[%clk 0:00:59]}  Ne5 {[%clk 0:01:05]} 22. Nxe5 {[%clk 0:00:59]}  dxe5 {[%clk 0:01:01]} 23. Bg3 {[%clk 0:00:57]}  Rb5 {[%clk 0:00:58]} 24. Qe2 {[%clk 0:00:54]}  h5 {[%clk 0:00:46]} 25. f3 {[%clk 0:00:52]}  Nc8 {[%clk 0:00:39]} 26. Bd3 {[%clk 0:00:50]}  Ra5 {[%clk 0:00:33]} 27. Qc2 {[%clk 0:00:49]}  c6 {[%clk 0:00:27]} 28. dxc6 {[%clk 0:00:48]}  bxc6 {[%clk 0:00:22]} 29. Kh1 {[%clk 0:00:45]}  Ra8 {[%clk 0:00:19]} 30. Rcd1 {[%clk 0:00:44]}  Qg5 {[%clk 0:00:19]} 31. Bf2 {[%clk 0:00:37]}  Qe7 {[%clk 0:00:18]} 32. Nc4 {[%clk 0:00:36]}  Be6 {[%clk 0:00:17]} 33. Bf1 {[%clk 0:00:36]}  h4 {[%clk 0:00:16]} 34. Be3 {[%clk 0:00:33]}  Bf6 {[%clk 0:00:16]} 35. Qc1 {[%clk 0:00:33]}  Kg7 {[%clk 0:00:15]} 36. Qc3 {[%clk 0:00:33]}  Bxc4 {[%clk 0:00:13]} 37. Bxc4 {[%clk 0:00:32]}  Nd6 {[%clk 0:00:14]} 38. Bc5 {[%clk 0:00:28]}  Red8 {[%clk 0:00:04]} 39. Qb4 {[%clk 0:00:15]}  Rac8 {[%clk 0:00:05]} 40. Bxd6 {[%clk 0:00:15]} 1-0


[Site "https://www.chess.com"]

[Event "Titled Tuesday Blitz March 08 Early 2022"]
[White "Matinian, Nikita"]
[Black "Skliarov, Viktor"]
[WhiteFideId "24129100"]
[BlackFideId "14106736"]
[WhiteElo "2422"]
[BlackElo "2229"]
[Result "0-1"]
[Round "10"]
[TimeControl "180+1"]
[Date "2022.03.08"]
[WhiteClock "0:00:02"]
[BlackClock "0:00:03"]

1. e4 {[%clk 0:03:00]}  c5 {[%clk 0:03:00]} 2. Nc3 {[%clk 0:02:59]}  Nc6 {[%clk 0:03:00]} 3. Bb5 {[%clk 0:02:59]}  Nd4 {[%clk 0:03:00]} 4. Nf3 {[%clk 0:03:00]}  g6 {[%clk 0:03:00]} 5. O-O {[%clk 0:02:59]}  Bg7 {[%clk 0:03:01]} 6. Re1 {[%clk 0:03:00]}  Nxb5 {[%clk 0:03:00]} 7. Nxb5 {[%clk 0:02:59]}  a6 {[%clk 0:03:00]} 8. Nc3 {[%clk 0:02:59]}  b5 {[%clk 0:03:00]} 9. e5 {[%clk 0:02:59]}  Nh6 {[%clk 0:03:00]} 10. Ne4 {[%clk 0:02:54]}  Qb6 {[%clk 0:02:56]} 11. d4 {[%clk 0:02:50]}  cxd4 {[%clk 0:02:53]} 12. Nf6+ {[%clk 0:02:48]}  Kf8 {[%clk 0:02:43]} 13. Nd5 {[%clk 0:02:48]}  Qc5 {[%clk 0:02:28]} 14. Qxd4 {[%clk 0:02:30]}  Qxd4 {[%clk 0:02:28]} 15. Nxd4 {[%clk 0:02:31]}  Bb7 {[%clk 0:02:29]} 16. Nb6 {[%clk 0:02:31]}  Rd8 {[%clk 0:02:28]} 17. a4 {[%clk 0:02:31]}  b4 {[%clk 0:01:46]} 18. Bd2 {[%clk 0:02:22]}  d6 {[%clk 0:01:41]} 19. Bxb4 {[%clk 0:01:51]}  Bxe5 {[%clk 0:01:27]} 20. c3 {[%clk 0:01:51]}  Nf5 {[%clk 0:01:22]} 21. Rad1 {[%clk 0:01:37]}  Kg7 {[%clk 0:01:11]} 22. Nc4 {[%clk 0:01:35]}  Nxd4 {[%clk 0:01:05]} 23. cxd4 {[%clk 0:01:36]}  Bf6 {[%clk 0:01:04]} 24. Ne3 {[%clk 0:01:30]}  Rb8 {[%clk 0:00:56]} 25. Bc3 {[%clk 0:01:30]}  Bc6 {[%clk 0:00:51]} 26. a5 {[%clk 0:01:31]}  Rb5 {[%clk 0:00:36]} 27. Ng4 {[%clk 0:01:28]}  Bd5 {[%clk 0:00:31]} 28. Nxf6 {[%clk 0:01:25]}  Kxf6 {[%clk 0:00:31]} 29. Rd3 {[%clk 0:01:23]}  e6 {[%clk 0:00:29]} 30. g4 {[%clk 0:01:14]}  h5 {[%clk 0:00:29]} 31. Rh3 {[%clk 0:01:14]}  h4 {[%clk 0:00:24]} 32. f4 {[%clk 0:01:11]}  g5 {[%clk 0:00:19]} 33. Rf1 {[%clk 0:01:04]}  gxf4 {[%clk 0:00:17]} 34. Rxf4+ {[%clk 0:01:05]}  Kg6 {[%clk 0:00:18]} 35. Re3 {[%clk 0:01:01]}  Rb3 {[%clk 0:00:15]} 36. Kf2 {[%clk 0:00:59]}  Rc8 {[%clk 0:00:15]} 37. h3 {[%clk 0:00:51]}  Rc4 {[%clk 0:00:14]} 38. Kg1 {[%clk 0:00:26]}  Ra4 {[%clk 0:00:13]} 39. Rf1 {[%clk 0:00:25]}  Ra2 {[%clk 0:00:10]} 40. Ree1 {[%clk 0:00:10]}  Rxc3 {[%clk 0:00:08]} 41. bxc3 {[%clk 0:00:09]}  Rg2+ {[%clk 0:00:08]} 42. Kh1 {[%clk 0:00:10]}  Rxg4+ {[%clk 0:00:04]} 43. Kh2 {[%clk 0:00:10]}  Rg2+ {[%clk 0:00:05]} 44. Kh1 {[%clk 0:00:10]}  Rg3+ {[%clk 0:00:05]} 45. Kh2 {[%clk 0:00:11]}  Rg2+ {[%clk 0:00:06]} 46. Kh1 {[%clk 0:00:11]}  Rc2+ {[%clk 0:00:06]} 47. Kg1 {[%clk 0:00:11]}  Rxc3 {[%clk 0:00:06]} 48. Rf4 {[%clk 0:00:05]}  Rxh3 {[%clk 0:00:04]} 49. Kf2 {[%clk 0:00:06]}  f5 {[%clk 0:00:03]} 50. Rg1+ {[%clk 0:00:06]}  Kf6 {[%clk 0:00:04]} 51. Ke2 {[%clk 0:00:05]}  Rh2+ {[%clk 0:00:03]} 52. Rf2 {[%clk 0:00:06]}  Bc4+ {[%clk 0:00:04]} 53. Ke1 {[%clk 0:00:06]}  Rh3 {[%clk 0:00:04]} 54. Rg8 {[%clk 0:00:05]}  Ra3 {[%clk 0:00:03]} 55. Rh8 {[%clk 0:00:06]}  h3 {[%clk 0:00:03]} 56. Rc2 {[%clk 0:00:03]}  Ra1+ {[%clk 0:00:03]} 57. Kf2 {[%clk 0:00:03]}  Bf1 {[%clk 0:00:02]} 58. Rcc8 {[%clk 0:00:02]}  Bg2 {[%clk 0:00:01]} 59. Rh5 {[%clk 0:00:01]}  Kg6 {[%clk 0:00:01]} 60. Rh6+ {[%clk 0:00:01]}  Kxh6 {[%clk 0:00:01]} 61. Re8 {[%clk 0:00:01]}  Kg5 {[%clk 0:00:02]} 62. Kg3 {[%clk 0:00:02]}  f4+ {[%clk 0:00:02]} 63. Kh2 {[%clk 0:00:02]}  Kf5 {[%clk 0:00:02]} 64. Rf8+ {[%clk 0:00:02]}  Ke4 {[%clk 0:00:03]} 0-1


[Site "https://www.chess.com"]

[Event "Titled Tuesday Blitz March 08 Early 2022"]
[White "Mekhitarian, Krikor Sevag"]
[Black "Kuzmin, Roman"]
[WhiteFideId "2107660"]
[BlackFideId "44134932"]
[WhiteElo "2598"]
[BlackElo "1978"]
[Result "1-0"]
[Round "10"]
[TimeControl "180+1"]
[Date "2022.03.09"]
[WhiteClock "0:00:12"]
[BlackClock "0:00:03"]

1. e4 {[%clk 0:03:00]}  c5 {[%clk 0:02:59]} 2. Nf3 {[%clk 0:03:00]}  d6 {[%clk 0:02:59]} 3. d4 {[%clk 0:03:01]}  cxd4 {[%clk 0:03:00]} 4. Nxd4 {[%clk 0:03:01]}  Nf6 {[%clk 0:03:00]} 5. Nc3 {[%clk 0:03:02]}  a6 {[%clk 0:03:00]} 6. a3 {[%clk 0:03:02]}  e5 {[%clk 0:02:39]} 7. Nf5 {[%clk 0:03:02]}  d5 {[%clk 0:02:20]} 8. Bg5 {[%clk 0:03:01]}  d4 {[%clk 0:02:17]} 9. Bxf6 {[%clk 0:03:01]}  gxf6 {[%clk 0:02:14]} 10. Na2 {[%clk 0:03:01]}  Bxf5 {[%clk 0:02:06]} 11. exf5 {[%clk 0:03:01]}  Qd5 {[%clk 0:02:06]} 12. Be2 {[%clk 0:03:02]}  e4 {[%clk 0:02:02]} 13. f3 {[%clk 0:02:49]}  e3 {[%clk 0:01:23]} 14. Qd3 {[%clk 0:02:37]}  Nc6 {[%clk 0:01:18]} 15. c4 {[%clk 0:01:54]}  Qe5 {[%clk 0:00:53]} 16. O-O {[%clk 0:01:43]}  O-O-O {[%clk 0:00:49]} 17. f4 {[%clk 0:01:42]}  Qc7 {[%clk 0:00:40]} 18. b4 {[%clk 0:01:41]}  Bh6 {[%clk 0:00:20]} 19. g3 {[%clk 0:01:39]}  Rhg8 {[%clk 0:00:20]} 20. Kh1 {[%clk 0:01:40]}  Bf8 {[%clk 0:00:11]} 21. Nc1 {[%clk 0:01:38]}  a5 {[%clk 0:00:11]} 22. Bf3 {[%clk 0:01:19]}  Kb8 {[%clk 0:00:09]} 23. c5 {[%clk 0:01:08]}  axb4 {[%clk 0:00:09]} 24. axb4 {[%clk 0:01:09]}  Nxb4 {[%clk 0:00:09]} 25. Qa3 {[%clk 0:00:56]}  Na6 {[%clk 0:00:10]} 26. Nd3 {[%clk 0:00:57]}  Bxc5 {[%clk 0:00:10]} 27. Qa2 {[%clk 0:00:53]}  Bb6 {[%clk 0:00:08]} 28. Rfc1 {[%clk 0:00:47]}  Qe7 {[%clk 0:00:08]} 29. Rcb1 {[%clk 0:00:42]}  Rd6 {[%clk 0:00:08]} 30. Qa3 {[%clk 0:00:33]}  Qd7 {[%clk 0:00:06]} 31. Rc1 {[%clk 0:00:23]}  Rc8 {[%clk 0:00:05]} 32. Rxc8+ {[%clk 0:00:15]}  Kxc8 {[%clk 0:00:05]} 33. Rc1+ {[%clk 0:00:14]}  Kb8 {[%clk 0:00:06]} 34. Rb1 {[%clk 0:00:13]}  Qc7 {[%clk 0:00:02]} 35. Qa2 {[%clk 0:00:12]}  Nc5 {[%clk 0:00:01]} 36. Nb4 {[%clk 0:00:12]}  Na6 {[%clk 0:00:01]} 37. Nd5 {[%clk 0:00:12]}  Qd7 {[%clk 0:00:01]} 38. Nxb6 {[%clk 0:00:12]}  Qd8 {[%clk 0:00:01]} 39. Nc4 {[%clk 0:00:12]}  d3 {[%clk 0:00:02]} 40. Nxd6 {[%clk 0:00:11]}  Qxd6 {[%clk 0:00:03]} 41. Rxb7+ {[%clk 0:00:12]}  Kc8 {[%clk 0:00:03]} 42. Qxf7 {[%clk 0:00:12]}  d2 {[%clk 0:00:03]} 43. Qe8+ {[%clk 0:00:12]}  Qd8 {[%clk 0:00:04]} 44. Qe6+ {[%clk 0:00:12]}  Qd7 {[%clk 0:00:03]} 45. Qxd7# {[%clk 0:00:12]} 1-0


[Site "https://www.chess.com"]